[Event "Titled Tuesday Blitz March 01 Early 2022"]
[White "Goltsev, Dmitry"]
[Black "Ponkratov, Pavel"]
[WhiteFideId "24176710"]
[BlackFideId "4157800"]
[WhiteElo "2273"]
[BlackElo "2487"]
[Result "0-1"]
[Round "06"]
[TimeControl "180+1"]
[Date "2022.03.01"]
[WhiteClock "0:02:21"]
[BlackClock "0:02:09"]

1. e4 {[%clk 0:03:00]}  e5 {[%clk 0:03:00]} 2. Nf3 {[%clk 0:03:00]}  d6 {[%clk 0:03:00]} 3. d4 {[%clk 0:03:00]}  exd4 {[%clk 0:03:00]} 4. Nxd4 {[%clk 0:03:01]}  Nf6 {[%clk 0:03:01]} 5. Nc3 {[%clk 0:03:02]}  g6 {[%clk 0:03:01]} 6. Be2 {[%clk 0:03:02]}  Bg7 {[%clk 0:03:02]} 7. O-O {[%clk 0:03:01]}  O-O {[%clk 0:03:02]} 8. f4 {[%clk 0:03:00]}  Re8 {[%clk 0:03:03]} 9. Bf3 {[%clk 0:03:00]}  Nbd7 {[%clk 0:02:58]} 10. Re1 {[%clk 0:02:58]}  Nc5 {[%clk 0:02:51]} 11. e5 {[%clk 0:02:57]}  dxe5 {[%clk 0:02:49]} 12. Rxe5 {[%clk 0:02:49]}  Ng4 {[%clk 0:02:38]} 13. Rxe8+ {[%clk 0:02:43]}  Qxe8 {[%clk 0:02:38]} 14. Ndb5 {[%clk 0:02:26]}  c6 {[%clk 0:02:09]} 15. Nc7 {[%clk 0:02:21]}  Bd4+ {[%clk 0:02:09]} 0-1


[Site "https://www.chess.com"]

[Event "Titled Tuesday Blitz March 01 Early 2022"]
[White "Goltseva, Ekaterina"]
[Black "Jarocka, Liwia"]
[WhiteFideId "24173770"]
[BlackFideId "21807558"]
[WhiteElo "2140"]
[BlackElo "1896"]
[Result "1-0"]
[Round "06"]
[TimeControl "180+1"]
[Date "2022.03.01"]
[WhiteClock "0:00:24"]
[BlackClock "0:01:02"]

1. d4 {[%clk 0:01:39]}  Nf6 {[%clk 0:02:52]} 2. c4 {[%clk 0:01:40]}  c5 {[%clk 0:02:52]} 3. d5 {[%clk 0:01:40]}  d6 {[%clk 0:02:52]} 4. Nc3 {[%clk 0:01:40]}  g6 {[%clk 0:02:52]} 5. e4 {[%clk 0:01:41]}  Bg7 {[%clk 0:02:53]} 6. Bd3 {[%clk 0:01:41]}  O-O {[%clk 0:02:53]} 7. Nf3 {[%clk 0:01:42]}  a6 {[%clk 0:02:52]} 8. h3 {[%clk 0:01:43]}  e6 {[%clk 0:02:50]} 9. a4 {[%clk 0:01:43]}  exd5 {[%clk 0:02:51]} 10. exd5 {[%clk 0:01:44]}  Re8+ {[%clk 0:02:51]} 11. Be3 {[%clk 0:01:44]}  Nh5 {[%clk 0:02:38]} 12. O-O {[%clk 0:01:44]}  f5 {[%clk 0:02:37]} 13. Bg5 {[%clk 0:01:43]}  Bf6 {[%clk 0:02:34]} 14. Qd2 {[%clk 0:01:42]}  Bxg5 {[%clk 0:02:33]} 15. Nxg5 {[%clk 0:01:42]}  Ng7 {[%clk 0:02:29]} 16. Rae1 {[%clk 0:01:42]}  Bd7 {[%clk 0:02:28]} 17. Bc2 {[%clk 0:01:32]}  a5 {[%clk 0:02:21]} 18. Nb5 {[%clk 0:01:31]}  Bxb5 {[%clk 0:02:18]} 19. axb5 {[%clk 0:01:31]}  Nd7 {[%clk 0:02:18]} 20. Ne6 {[%clk 0:01:28]}  Nxe6 {[%clk 0:02:17]} 21. dxe6 {[%clk 0:01:27]}  Nb6 {[%clk 0:02:11]} 22. Bd1 {[%clk 0:01:22]}  Qe7 {[%clk 0:02:07]} 23. Qd3 {[%clk 0:01:11]}  Rad8 {[%clk 0:02:02]} 24. Bf3 {[%clk 0:01:12]}  a4 {[%clk 0:02:00]} 25. Bd5 {[%clk 0:01:12]}  Rb8 {[%clk 0:01:55]} 26. Qf3 {[%clk 0:01:08]}  Kg7 {[%clk 0:01:54]} 27. Kh1 {[%clk 0:01:09]}  Qf6 {[%clk 0:01:50]} 28. Re2 {[%clk 0:01:07]}  Qe7 {[%clk 0:01:37]} 29. Qc3+ {[%clk 0:01:02]}  Qf6 {[%clk 0:01:36]} 30. Qa5 {[%clk 0:00:58]}  Nxd5 {[%clk 0:01:32]} 31. cxd5 {[%clk 0:00:58]}  b6 {[%clk 0:01:31]} 32. Qxa4 {[%clk 0:00:57]}  f4 {[%clk 0:01:29]} 33. f3 {[%clk 0:00:55]}  Ra8 {[%clk 0:01:24]} 34. Qc4 {[%clk 0:00:54]}  Re7 {[%clk 0:01:21]} 35. Rfe1 {[%clk 0:00:45]}  g5 {[%clk 0:01:21]} 36. b4 {[%clk 0:00:41]}  Ra4 {[%clk 0:01:20]} 37. Rb1 {[%clk 0:00:33]}  Qf5 {[%clk 0:01:18]} 38. Reb2 {[%clk 0:00:31]}  Rea7 {[%clk 0:01:04]} 39. Qc3+ {[%clk 0:00:31]}  Qf6 {[%clk 0:01:03]} 40. Qxf6+ {[%clk 0:00:31]}  Kxf6 {[%clk 0:01:04]} 41. bxc5 {[%clk 0:00:32]}  bxc5 {[%clk 0:01:04]} 42. b6 {[%clk 0:00:30]}  Rb7 {[%clk 0:01:04]} 43. Rd2 {[%clk 0:00:27]}  Ra6 {[%clk 0:01:03]} 44. Rdb2 {[%clk 0:00:26]}  Ke5 {[%clk 0:01:02]} 45. Re1+ {[%clk 0:00:23]}  Kf6 {[%clk 0:01:02]} 46. Reb1 {[%clk 0:00:24]}  Ke5 {[%clk 0:01:01]} 47. Re1+ {[%clk 0:00:24]}  Kf6 {[%clk 0:01:02]} 48. e7 {[%clk 0:00:24]} 1-0


[Site "https://www.chess.com"]

[Event "Titled Tuesday Blitz March 01 Early 2022"]
[White "Golubenko, Valentina"]
[Black "Romanchuk, Viktor"]
[WhiteFideId "4501993"]
[BlackFideId "14109271"]
[WhiteElo "2164"]
[BlackElo "2242"]
[Result "0-1"]
[Round "06"]
[TimeControl "180+1"]
[Date "2022.03.01"]
[WhiteClock "0:00:04"]
[BlackClock "0:00:16"]

1. d4 {[%clk 0:03:00]}  d5 {[%clk 0:02:57]} 2. g3 {[%clk 0:03:01]}  Nf6 {[%clk 0:02:56]} 3. Bg2 {[%clk 0:03:01]}  c5 {[%clk 0:02:56]} 4. dxc5 {[%clk 0:02:57]}  e6 {[%clk 0:02:56]} 5. Nf3 {[%clk 0:02:57]}  Bxc5 {[%clk 0:02:55]} 6. O-O {[%clk 0:02:57]}  Nc6 {[%clk 0:02:55]} 7. c4 {[%clk 0:02:57]}  dxc4 {[%clk 0:02:54]} 8. Qc2 {[%clk 0:02:57]}  O-O {[%clk 0:02:50]} 9. Qxc4 {[%clk 0:02:57]}  Qe7 {[%clk 0:02:51]} 10. Bg5 {[%clk 0:02:55]}  Bd7 {[%clk 0:02:49]} 11. Bxf6 {[%clk 0:02:52]}  gxf6 {[%clk 0:02:49]} 12. Nc3 {[%clk 0:02:47]}  Rac8 {[%clk 0:02:49]} 13. Qh4 {[%clk 0:02:39]}  Ne5 {[%clk 0:02:31]} 14. Ne4 {[%clk 0:02:30]}  Nxf3+ {[%clk 0:02:24]} 15. Bxf3 {[%clk 0:02:30]}  Kg7 {[%clk 0:02:23]} 16. Rfd1 {[%clk 0:02:06]}  Rfd8 {[%clk 0:02:17]} 17. Rac1 {[%clk 0:01:47]}  b6 {[%clk 0:02:12]} 18. Nxc5 {[%clk 0:01:12]}  Rxc5 {[%clk 0:02:07]} 19. Be4 {[%clk 0:01:11]}  h6 {[%clk 0:01:47]} 20. Bd3 {[%clk 0:00:54]}  Be8 {[%clk 0:01:39]} 21. Qg4+ {[%clk 0:00:46]}  Kf8 {[%clk 0:01:38]} 22. Qf4 {[%clk 0:00:43]}  Kg7 {[%clk 0:01:36]} 23. b4 {[%clk 0:00:38]}  Rcd5 {[%clk 0:01:28]} 24. Qg4+ {[%clk 0:00:30]}  Rg5 {[%clk 0:01:28]} 25. Qe4 {[%clk 0:00:29]}  f5 {[%clk 0:01:07]} 26. Qe5+ {[%clk 0:00:29]}  Qf6 {[%clk 0:01:07]} 27. Qc7 {[%clk 0:00:27]}  Rd7 {[%clk 0:01:03]} 28. Qb8 {[%clk 0:00:23]}  Rd8 {[%clk 0:01:02]} 29. Rc8 {[%clk 0:00:22]}  Rxc8 {[%clk 0:00:59]} 30. Qxc8 {[%clk 0:00:22]}  Ba4 {[%clk 0:01:00]} 31. Rc1 {[%clk 0:00:22]}  f4 {[%clk 0:00:56]} 32. Rc7 {[%clk 0:00:20]}  fxg3 {[%clk 0:00:53]} 33. hxg3 {[%clk 0:00:20]}  Qd4 {[%clk 0:00:47]} 34. Kg2 {[%clk 0:00:19]}  Qd5+ {[%clk 0:00:40]} 35. f3 {[%clk 0:00:18]}  Qd6 {[%clk 0:00:34]} 36. g4 {[%clk 0:00:16]}  h5 {[%clk 0:00:33]} 37. Rd7 {[%clk 0:00:14]}  Bxd7 {[%clk 0:00:29]} 38. Qc3+ {[%clk 0:00:11]}  Qe5 {[%clk 0:00:28]} 39. Qd2 {[%clk 0:00:08]}  Bc6 {[%clk 0:00:22]} 40. Kf2 {[%clk 0:00:06]}  hxg4 {[%clk 0:00:20]} 41. f4 {[%clk 0:00:06]}  Qf6 {[%clk 0:00:19]} 42. Kg3 {[%clk 0:00:06]}  Rh5 {[%clk 0:00:19]} 43. Kxg4 {[%clk 0:00:04]}  Qh4# {[%clk 0:00:16]} 0-1


[Site "https://www.chess.com"]

[Event "Titled Tuesday Blitz March 01 Early 2022"]
[White "Gunina, Valentina"]
[Black "Savchenko, Boris"]
[WhiteFideId "4167570"]
[BlackFideId "4147332"]
[WhiteElo "2695"]
[BlackElo "2849"]
[Result "1/2-1/2"]
[Round "06"]
[TimeControl "180+1"]
[Date "2022.03.01"]
[WhiteClock "0:00:21"]
[BlackClock "0:00:07"]

1. d4 {[%clk 0:03:00]}  Nf6 {[%clk 0:02:57]} 2. c4 {[%clk 0:03:00]}  e6 {[%clk 0:02:56]} 3. Nf3 {[%clk 0:03:00]}  b6 {[%clk 0:02:55]} 4. g3 {[%clk 0:02:59]}  Bb4+ {[%clk 0:02:55]} 5. Bd2 {[%clk 0:02:59]}  c5 {[%clk 0:02:56]} 6. Bxb4 {[%clk 0:02:54]}  cxb4 {[%clk 0:02:55]} 7. Bg2 {[%clk 0:02:54]}  Bb7 {[%clk 0:02:55]} 8. O-O {[%clk 0:02:54]}  a5 {[%clk 0:02:56]} 9. a3 {[%clk 0:02:54]}  Na6 {[%clk 0:02:56]} 10. Qd3 {[%clk 0:02:49]}  O-O {[%clk 0:02:54]} 11. Nbd2 {[%clk 0:02:49]}  d6 {[%clk 0:02:52]} 12. Ne1 {[%clk 0:02:48]}  d5 {[%clk 0:02:51]} 13. Nc2 {[%clk 0:02:39]}  Rc8 {[%clk 0:02:47]} 14. cxd5 {[%clk 0:02:35]}  Nxd5 {[%clk 0:02:43]} 15. e4 {[%clk 0:02:34]}  Nc3 {[%clk 0:02:32]} 16. axb4 {[%clk 0:02:26]}  Ne2+ {[%clk 0:02:31]} 17. Kh1 {[%clk 0:02:08]}  Rxc2 {[%clk 0:02:25]} 18. Qxc2 {[%clk 0:02:07]}  Nxb4 {[%clk 0:02:23]} 19. Qd1 {[%clk 0:01:55]}  Nxd4 {[%clk 0:02:23]} 20. Nb3 {[%clk 0:01:51]}  Nbc2 {[%clk 0:02:13]} 21. Rc1 {[%clk 0:01:40]}  Ba6 {[%clk 0:02:04]} 22. Nxd4 {[%clk 0:01:15]}  Nxd4 {[%clk 0:02:05]} 23. Re1 {[%clk 0:01:15]}  e5 {[%clk 0:02:05]} 24. f4 {[%clk 0:01:12]}  Qd6 {[%clk 0:01:58]} 25. fxe5 {[%clk 0:00:48]}  Qxe5 {[%clk 0:01:57]} 26. Qa4 {[%clk 0:00:46]}  h5 {[%clk 0:01:51]} 27. Rcd1 {[%clk 0:00:35]}  Rd8 {[%clk 0:01:31]} 28. Rd2 {[%clk 0:00:35]}  h4 {[%clk 0:01:12]} 29. Red1 {[%clk 0:00:35]}  Bb5 {[%clk 0:01:10]} 30. Qa3 {[%clk 0:00:35]}  h3 {[%clk 0:00:55]} 31. Bxh3 {[%clk 0:00:35]}  Qxe4+ {[%clk 0:00:51]} 32. Bg2 {[%clk 0:00:36]}  Qg4 {[%clk 0:00:46]} 33. Qc3 {[%clk 0:00:35]}  Rd7 {[%clk 0:00:34]} 34. Rxd4 {[%clk 0:00:35]}  Qxd1+ {[%clk 0:00:34]} 35. Rxd1 {[%clk 0:00:35]}  Rxd1+ {[%clk 0:00:35]} 36. Bf1 {[%clk 0:00:35]}  Rxf1+ {[%clk 0:00:27]} 37. Kg2 {[%clk 0:00:35]}  g6 {[%clk 0:00:16]} 38. h4 {[%clk 0:00:35]}  Rf5 {[%clk 0:00:15]} 39. g4 {[%clk 0:00:33]}  Rc5 {[%clk 0:00:12]} 40. Qf6 {[%clk 0:00:34]}  Bc6+ {[%clk 0:00:10]} 41. Kg3 {[%clk 0:00:34]}  Be4 {[%clk 0:00:09]} 42. Qd8+ {[%clk 0:00:34]}  Kh7 {[%clk 0:00:09]} 43. Qxb6 {[%clk 0:00:34]}  Rd5 {[%clk 0:00:09]} 44. Qf6 {[%clk 0:00:33]}  Rd3+ {[%clk 0:00:09]} 45. Kh2 {[%clk 0:00:32]}  Rf3 {[%clk 0:00:08]} 46. Qe5 {[%clk 0:00:31]}  Bb1 {[%clk 0:00:07]} 47. Kg2 {[%clk 0:00:30]}  Rb3 {[%clk 0:00:06]} 48. Kf2 {[%clk 0:00:28]}  Rb7 {[%clk 0:00:05]} 49. Ke2 {[%clk 0:00:26]}  a4 {[%clk 0:00:05]} 50. Kd2 {[%clk 0:00:26]}  Ba2 {[%clk 0:00:06]} 51. Qd4 {[%clk 0:00:25]}  Bb3 {[%clk 0:00:06]} 52. h5 {[%clk 0:00:23]}  Re7 {[%clk 0:00:05]} 53. Qf6 {[%clk 0:00:22]}  Rd7+ {[%clk 0:00:05]} 54. Ke3 {[%clk 0:00:22]}  Rb7 {[%clk 0:00:04]} 55. g5 {[%clk 0:00:21]}  gxh5 {[%clk 0:00:04]} 56. Qh6+ {[%clk 0:00:22]}  Kg8 {[%clk 0:00:04]} 57. g6 {[%clk 0:00:22]}  Re7+ {[%clk 0:00:04]} 58. Kd4 {[%clk 0:00:21]}  Rd7+ {[%clk 0:00:04]} 59. Kc5 {[%clk 0:00:20]}  Rd5+ {[%clk 0:00:04]} 60. Kc6 {[%clk 0:00:20]}  fxg6 {[%clk 0:00:04]} 61. Qxg6+ {[%clk 0:00:21]}  Kh8 {[%clk 0:00:05]} 62. Qh6+ {[%clk 0:00:20]}  Kg8 {[%clk 0:00:05]} 63. Qg6+ {[%clk 0:00:21]}  Kf8 {[%clk 0:00:06]} 64. Qf6+ {[%clk 0:00:20]}  Ke8 {[%clk 0:00:05]} 65. Qe6+ {[%clk 0:00:20]}  Kf8 {[%clk 0:00:06]} 66. Qf6+ {[%clk 0:00:21]}  Ke8 {[%clk 0:00:06]} 67. Qe6+ {[%clk 0:00:21]}  Kf8 {[%clk 0:00:07]} 68. Qf6+ {[%clk 0:00:21]} 1/2-1/2


[Site "https://www.chess.com"]

[Event "Titled Tuesday Blitz March 01 Early 2022"]
[White "Hess, Robert"]
[Black "Sadhwani, Raunak"]
[WhiteFideId "2022036"]
[BlackFideId "35093487"]
[WhiteElo "2838"]
[BlackElo "2990"]
[Result "0-1"]
[Round "06"]
[TimeControl "180+1"]
[Date "2022.03.01"]
[WhiteClock "0:00:06"]
[BlackClock "0:00:10"]

1. d4 {[%clk 0:03:00]}  Nf6 {[%clk 0:03:00]} 2. c4 {[%clk 0:03:01]}  g6 {[%clk 0:03:00]} 3. Nc3 {[%clk 0:03:01]}  Bg7 {[%clk 0:03:01]} 4. e4 {[%clk 0:03:01]}  d6 {[%clk 0:03:01]} 5. Be3 {[%clk 0:03:01]}  Ng4 {[%clk 0:02:51]} 6. Bc1 {[%clk 0:02:56]}  e5 {[%clk 0:02:36]} 7. dxe5 {[%clk 0:02:57]}  Nxe5 {[%clk 0:02:36]} 8. f4 {[%clk 0:02:51]}  Ng4 {[%clk 0:02:36]} 9. Be2 {[%clk 0:02:50]}  Nf6 {[%clk 0:02:28]} 10. Bf3 {[%clk 0:02:50]}  O-O {[%clk 0:02:28]} 11. Nge2 {[%clk 0:02:51]}  Bg4 {[%clk 0:02:25]} 12. O-O {[%clk 0:02:32]}  Nc6 {[%clk 0:02:20]} 13. Ng3 {[%clk 0:02:22]}  h5 {[%clk 0:02:08]} 14. Be3 {[%clk 0:02:18]}  Re8 {[%clk 0:02:06]} 15. Re1 {[%clk 0:02:05]}  Bxf3 {[%clk 0:01:55]} 16. Qxf3 {[%clk 0:02:06]}  Ng4 {[%clk 0:01:56]} 17. Rad1 {[%clk 0:01:59]}  Nxe3 {[%clk 0:01:30]} 18. Qxe3 {[%clk 0:01:58]}  h4 {[%clk 0:01:22]} 19. Nf1 {[%clk 0:01:48]}  Qd7 {[%clk 0:01:09]} 20. h3 {[%clk 0:01:37]}  Re6 {[%clk 0:01:09]} 21. Qf2 {[%clk 0:01:23]}  Rae8 {[%clk 0:01:07]} 22. e5 {[%clk 0:01:22]}  Qc8 {[%clk 0:00:56]} 23. Ne4 {[%clk 0:01:05]}  dxe5 {[%clk 0:00:50]} 24. Ng5 {[%clk 0:01:02]}  R6e7 {[%clk 0:00:40]} 25. Qxh4 {[%clk 0:00:56]}  exf4 {[%clk 0:00:40]} 26. Rxe7 {[%clk 0:00:53]}  Rxe7 {[%clk 0:00:41]} 27. Qxf4 {[%clk 0:00:45]}  Qe8 {[%clk 0:00:33]} 28. b3 {[%clk 0:00:40]}  Rd7 {[%clk 0:00:28]} 29. Rxd7 {[%clk 0:00:32]}  Qxd7 {[%clk 0:00:29]} 30. Ne3 {[%clk 0:00:24]}  Bd4 {[%clk 0:00:21]} 31. Kf1 {[%clk 0:00:19]}  Be5 {[%clk 0:00:19]} 32. Qe4 {[%clk 0:00:11]}  Qd2 {[%clk 0:00:16]} 33. Nf3 {[%clk 0:00:09]}  Qc1+ {[%clk 0:00:15]} 34. Kf2 {[%clk 0:00:09]}  Qb2+ {[%clk 0:00:15]} 35. Qc2 {[%clk 0:00:09]}  Qa1 {[%clk 0:00:13]} 36. Nd5 {[%clk 0:00:06]}  Kg7 {[%clk 0:00:11]} 37. Nxe5 {[%clk 0:00:05]}  Qxe5 {[%clk 0:00:12]} 38. Qc3 {[%clk 0:00:06]}  Nd4 {[%clk 0:00:11]} 39. Qe3 {[%clk 0:00:05]}  Qf5+ {[%clk 0:00:11]} 40. Kg1 {[%clk 0:00:04]}  c5 {[%clk 0:00:10]} 41. Kh2 {[%clk 0:00:03]}  Ne6 {[%clk 0:00:08]} 42. Qc3+ {[%clk 0:00:03]}  Nd4 {[%clk 0:00:09]} 43. Qe3 {[%clk 0:00:03]}  g5 {[%clk 0:00:09]} 44. Qg3 {[%clk 0:00:03]}  Ne6 {[%clk 0:00:08]} 45. Qc3+ {[%clk 0:00:03]}  Kh7 {[%clk 0:00:09]} 46. Qf6 {[%clk 0:00:03]}  Qxf6 {[%clk 0:00:08]} 47. Nxf6+ {[%clk 0:00:04]}  Kg6 {[%clk 0:00:09]} 48. Ne4 {[%clk 0:00:04]}  f5 {[%clk 0:00:08]} 49. Nd6 {[%clk 0:00:04]}  Nd8 {[%clk 0:00:06]} 50. Kg3 {[%clk 0:00:04]}  Kf6 {[%clk 0:00:05]} 51. Kf3 {[%clk 0:00:04]}  Ke5 {[%clk 0:00:05]} 52. Nb5 {[%clk 0:00:05]}  a6 {[%clk 0:00:05]} 53. Nc3 {[%clk 0:00:05]}  Ne6 {[%clk 0:00:06]} 54. Ke3 {[%clk 0:00:05]}  Nd4 {[%clk 0:00:05]} 55. g3 {[%clk 0:00:05]}  b5 {[%clk 0:00:04]} 56. cxb5 {[%clk 0:00:05]}  axb5 {[%clk 0:00:05]} 57. h4 {[%clk 0:00:04]}  f4+ {[%clk 0:00:04]} 58. gxf4+ {[%clk 0:00:05]}  gxf4+ {[%clk 0:00:05]} 59. Kf2 {[%clk 0:00:05]}  b4 {[%clk 0:00:03]} 60. Na4 {[%clk 0:00:05]}  Ne6 {[%clk 0:00:04]} 61. h5 {[%clk 0:00:04]}  Kf5 {[%clk 0:00:04]} 62. Kf3 {[%clk 0:00:04]}  Nd4+ {[%clk 0:00:04]} 63. Kf2 {[%clk 0:00:04]}  Ne6 {[%clk 0:00:04]} 64. Kf3 {[%clk 0:00:04]}  Kg5 {[%clk 0:00:05]} 65. Ke4 {[%clk 0:00:04]}  Kxh5 {[%clk 0:00:05]} 66. Nb2 {[%clk 0:00:04]}  Kg4 {[%clk 0:00:05]} 67. Nd3 {[%clk 0:00:04]}  Kg3 {[%clk 0:00:05]} 68. Kd5 {[%clk 0:00:04]}  Nc7+ {[%clk 0:00:02]} 69. Kxc5 {[%clk 0:00:04]}  f3 {[%clk 0:00:03]} 70. Kxb4 {[%clk 0:00:04]}  Ne6 {[%clk 0:00:03]} 71. a4 {[%clk 0:00:04]}  Nf4 {[%clk 0:00:04]} 72. Nc5 {[%clk 0:00:02]}  Nd5+ {[%clk 0:00:03]} 73. Kc4 {[%clk 0:00:02]}  Nf6 {[%clk 0:00:02]} 74. Nd3 {[%clk 0:00:02]}  Ng4 {[%clk 0:00:03]} 75. b4 {[%clk 0:00:02]}  Ne5+ {[%clk 0:00:03]} 76. Nxe5 {[%clk 0:00:02]}  f2 {[%clk 0:00:03]} 77. b5 {[%clk 0:00:02]}  f1=Q+ {[%clk 0:00:04]} 78. Nd3 {[%clk 0:00:02]}  Kf3 {[%clk 0:00:04]} 79. Kd4 {[%clk 0:00:02]}  Qa1+ {[%clk 0:00:04]} 80. Kc5 {[%clk 0:00:01]}  Qc3+ {[%clk 0:00:05]} 81. Kb6 {[%clk 0:00:01]}  Qxd3 {[%clk 0:00:06]} 82. a5 {[%clk 0:00:02]}  Qd6+ {[%clk 0:00:06]} 83. Ka7 {[%clk 0:00:03]}  Qc7+ {[%clk 0:00:05]} 84. Ka6 {[%clk 0:00:03]}  Qb8 {[%clk 0:00:06]} 85. b6 {[%clk 0:00:03]}  Ke4 {[%clk 0:00:07]} 86. Kb5 {[%clk 0:00:04]}  Kd5 {[%clk 0:00:07]} 87. a6 {[%clk 0:00:05]}  Qe8+ {[%clk 0:00:08]} 88. Ka5 {[%clk 0:00:05]}  Kc6 {[%clk 0:00:09]} 89. b7 {[%clk 0:00:06]}  Kc7 {[%clk 0:00:10]} 0-1


[Site "https://www.chess.com"]

[Event "Titled Tuesday Blitz March 01 Early 2022"]
[White "Jaskolka, Tomasz"]
[Black "P., Komal Kishore"]
[WhiteFideId "1170791"]
[BlackFideId "5016703"]
[WhiteElo "2054"]
[BlackElo "2084"]
[Result "1-0"]
[Round "06"]
[TimeControl "180+1"]
[Date "2022.03.01"]
[WhiteClock "0:00:18"]
[BlackClock "0:00:01"]

1. d4 {[%clk 0:02:55]}  c6 {[%clk 0:03:00]} 2. e4 {[%clk 0:02:54]}  d5 {[%clk 0:03:01]} 3. e5 {[%clk 0:02:54]}  Bf5 {[%clk 0:03:01]} 4. h4 {[%clk 0:02:54]}  h5 {[%clk 0:03:00]} 5. c4 {[%clk 0:02:51]}  e6 {[%clk 0:02:59]} 6. Nc3 {[%clk 0:02:51]}  Nh6 {[%clk 0:02:54]} 7. Nf3 {[%clk 0:02:48]}  Be7 {[%clk 0:02:48]} 8. Be2 {[%clk 0:02:47]}  Nd7 {[%clk 0:02:44]} 9. cxd5 {[%clk 0:02:47]}  cxd5 {[%clk 0:02:43]} 10. Bg5 {[%clk 0:02:47]}  a6 {[%clk 0:02:35]} 11. Rc1 {[%clk 0:02:33]}  Bg4 {[%clk 0:02:21]} 12. Qd2 {[%clk 0:02:27]}  Nf5 {[%clk 0:02:18]} 13. g3 {[%clk 0:02:21]}  b5 {[%clk 0:02:12]} 14. a3 {[%clk 0:02:09]}  Rc8 {[%clk 0:02:07]} 15. O-O {[%clk 0:02:06]}  O-O {[%clk 0:01:57]} 16. Kg2 {[%clk 0:02:06]}  Qb6 {[%clk 0:01:48]} 17. Bxe7 {[%clk 0:01:56]}  Nxe7 {[%clk 0:01:44]} 18. Ng5 {[%clk 0:01:56]}  Bxe2 {[%clk 0:01:37]} 19. Nxe2 {[%clk 0:01:56]}  Nf5 {[%clk 0:01:29]} 20. Rc3 {[%clk 0:01:31]}  Rc4 {[%clk 0:01:21]} 21. Rxc4 {[%clk 0:01:28]}  bxc4 {[%clk 0:01:19]} 22. Rb1 {[%clk 0:01:15]}  Rb8 {[%clk 0:01:16]} 23. f3 {[%clk 0:01:15]}  Rb7 {[%clk 0:01:02]} 24. Qf4 {[%clk 0:01:12]}  Nb8 {[%clk 0:00:59]} 25. Kh3 {[%clk 0:00:55]}  Nc6 {[%clk 0:00:55]} 26. g4 {[%clk 0:00:53]}  hxg4+ {[%clk 0:00:48]} 27. fxg4 {[%clk 0:00:53]}  Nfxd4 {[%clk 0:00:47]} 28. Ng3 {[%clk 0:00:53]}  Qb3 {[%clk 0:00:42]} 29. Re1 {[%clk 0:00:35]}  Qd3 {[%clk 0:00:30]} 30. Re3 {[%clk 0:00:27]}  Qd2 {[%clk 0:00:28]} 31. h5 {[%clk 0:00:24]}  Nc2 {[%clk 0:00:17]} 32. Rf3 {[%clk 0:00:24]}  Qxf4 {[%clk 0:00:14]} 33. Rxf4 {[%clk 0:00:25]}  Nxe5 {[%clk 0:00:11]} 34. Rf2 {[%clk 0:00:21]}  Nd4 {[%clk 0:00:09]} 35. Rd2 {[%clk 0:00:20]}  Ndf3 {[%clk 0:00:08]} 36. Nxf3 {[%clk 0:00:21]}  Nxf3 {[%clk 0:00:08]} 37. Rf2 {[%clk 0:00:21]}  Ng5+ {[%clk 0:00:07]} 38. Kh4 {[%clk 0:00:22]}  f6 {[%clk 0:00:07]} 39. h6 {[%clk 0:00:21]}  Rb3 {[%clk 0:00:06]} 40. hxg7 {[%clk 0:00:18]}  Rxg3 {[%clk 0:00:03]} 41. Rxf6 {[%clk 0:00:18]}  Ne4 {[%clk 0:00:02]} 42. Rxe6 {[%clk 0:00:18]}  Rg1 {[%clk 0:00:01]} 43. Kh5 {[%clk 0:00:16]}  Kxg7 {[%clk 0:00:01]} 44. Re7+ {[%clk 0:00:17]}  Kf6 {[%clk 0:00:01]} 45. Ra7 {[%clk 0:00:18]}  Ke5 {[%clk 0:00:01]} 46. Rxa6 {[%clk 0:00:18]} 1-0


[Site "https://www.chess.com"]

[Event "Titled Tuesday Blitz March 01 Early 2022"]
[White "Kadam, Om Manish"]
[Black "Shukhman, Anna"]
[WhiteFideId "45076294"]
[BlackFideId "54180058"]
[WhiteElo "1729"]
[BlackElo "1628"]
[Result "0-1"]
[Round "06"]
[TimeControl "180+1"]
[Date "2022.03.01"]
[WhiteClock "0:00:20"]
[BlackClock "0:01:15"]

1. e4 {[%clk 0:03:00]}  c5 {[%clk 0:02:52]} 2. Nf3 {[%clk 0:03:00]}  e6 {[%clk 0:02:51]} 3. d4 {[%clk 0:03:00]}  cxd4 {[%clk 0:02:52]} 4. Nxd4 {[%clk 0:03:01]}  Nf6 {[%clk 0:02:52]} 5. Nc3 {[%clk 0:03:01]}  Nc6 {[%clk 0:02:52]} 6. Be3 {[%clk 0:02:57]}  d5 {[%clk 0:02:52]} 7. Bd3 {[%clk 0:02:52]}  e5 {[%clk 0:02:47]} 8. Nxc6 {[%clk 0:02:46]}  bxc6 {[%clk 0:02:48]} 9. Bg5 {[%clk 0:02:28]}  d4 {[%clk 0:02:47]} 10. Ne2 {[%clk 0:02:28]}  Bb4+ {[%clk 0:02:42]} 11. Bd2 {[%clk 0:02:24]}  Bxd2+ {[%clk 0:02:39]} 12. Qxd2 {[%clk 0:02:25]}  O-O {[%clk 0:02:39]} 13. O-O {[%clk 0:02:24]}  a5 {[%clk 0:02:28]} 14. f4 {[%clk 0:02:24]}  Ng4 {[%clk 0:02:25]} 15. Rf3 {[%clk 0:02:16]}  c5 {[%clk 0:02:22]} 16. b3 {[%clk 0:02:11]}  a4 {[%clk 0:02:20]} 17. Raf1 {[%clk 0:02:02]}  axb3 {[%clk 0:02:18]} 18. axb3 {[%clk 0:02:00]}  Ne3 {[%clk 0:02:17]} 19. Rxe3 {[%clk 0:01:55]}  dxe3 {[%clk 0:02:16]} 20. Qxe3 {[%clk 0:01:56]}  exf4 {[%clk 0:02:16]} 21. Qxc5 {[%clk 0:01:55]}  Ba6 {[%clk 0:02:10]} 22. Nxf4 {[%clk 0:01:40]}  Rc8 {[%clk 0:02:01]} 23. Qb4 {[%clk 0:01:24]}  Bxd3 {[%clk 0:01:59]} 24. cxd3 {[%clk 0:01:25]}  Rc2 {[%clk 0:01:55]} 25. Nd5 {[%clk 0:01:14]}  h6 {[%clk 0:01:50]} 26. Ne7+ {[%clk 0:01:03]}  Kh7 {[%clk 0:01:49]} 27. Nd5 {[%clk 0:00:56]}  Qg5 {[%clk 0:01:45]} 28. Nf4 {[%clk 0:00:50]}  Rfc8 {[%clk 0:01:38]} 29. Qb7 {[%clk 0:00:41]}  Rc1 {[%clk 0:01:19]} 30. Ne2 {[%clk 0:00:20]}  Qe3+ {[%clk 0:01:15]} 0-1


[Site "https://www.chess.com"]

[Event "Titled Tuesday Blitz March 01 Early 2022"]
[White "Kalajzic, Ivan"]
[Black "Fus, Jakub"]
[WhiteFideId "14506378"]
[BlackFideId "1193023"]
[WhiteElo "2163"]
[BlackElo "2111"]
[Result "1-0"]
[Round "06"]
[TimeControl "180+1"]
[Date "2022.03.01"]
[WhiteClock "0:01:57"]
[BlackClock "0:01:45"]

1. d4 {[%clk 0:03:00]}  d5 {[%clk 0:02:58]} 2. Nc3 {[%clk 0:03:00]}  e6 {[%clk 0:02:58]} 3. Nf3 {[%clk 0:03:00]}  Bb4 {[%clk 0:02:57]} 4. Qd3 {[%clk 0:02:59]}  Nf6 {[%clk 0:02:56]} 5. Bg5 {[%clk 0:02:57]}  O-O {[%clk 0:02:53]} 6. a3 {[%clk 0:02:57]}  Bxc3+ {[%clk 0:02:50]} 7. Qxc3 {[%clk 0:02:57]}  Nbd7 {[%clk 0:02:43]} 8. e3 {[%clk 0:02:53]}  b6 {[%clk 0:02:42]} 9. Bd3 {[%clk 0:02:50]}  Bb7 {[%clk 0:02:42]} 10. O-O {[%clk 0:02:50]}  h6 {[%clk 0:02:42]} 11. Bh4 {[%clk 0:02:49]}  c5 {[%clk 0:02:42]} 12. Ne5 {[%clk 0:02:47]}  Rc8 {[%clk 0:02:27]} 13. Nxd7 {[%clk 0:02:46]}  Qxd7 {[%clk 0:02:27]} 14. Bxf6 {[%clk 0:02:45]}  gxf6 {[%clk 0:02:28]} 15. dxc5 {[%clk 0:02:45]}  e5 {[%clk 0:02:17]} 16. b4 {[%clk 0:02:42]}  bxc5 {[%clk 0:02:17]} 17. bxc5 {[%clk 0:02:42]}  Qg4 {[%clk 0:02:07]} 18. f3 {[%clk 0:02:25]}  Qg5 {[%clk 0:02:07]} 19. f4 {[%clk 0:02:24]}  Qxg2+ {[%clk 0:01:58]} 20. Kxg2 {[%clk 0:02:21]}  d4+ {[%clk 0:01:59]} 21. c6 {[%clk 0:02:12]}  Bxc6+ {[%clk 0:01:48]} 22. Qxc6 {[%clk 0:02:10]}  Rxc6 {[%clk 0:01:49]} 23. exd4 {[%clk 0:02:08]}  exd4 {[%clk 0:01:48]} 24. Kf3 {[%clk 0:02:01]}  Rfc8 {[%clk 0:01:45]} 25. Rab1 {[%clk 0:01:57]} 1-0


[Site "https://www.chess.com"]